Workbook

Sheet Info
B2: Lectura de archivos de GEOMETRIA Y DATOS de la Herramienta Unificada LIDER - CALENER. Autor: Oscar Redondo Rivera | M2: Versión Mayo 2016
B4: INSTRUCCIONES DE USO
B6: 1.- El primer paso es realizar una copia del archivo de datos de HULC que deseemos explorar. Su ubicación suele ser C:\ProyectosCTEyCEE\CTEHE2013\Proyectos
B7: Dentro de la carpeta específica de cada proyecto nos interesa el archivo con extensión ctehexml
B9: 2.- Sobre la copia del archivo editamos su nombre (F2) y cambiamos la extensión de la mencionada “ ctehexml” a “txt”
B11: 3.- Abrimos el archivo con extensión “txt” mediante la aplicación macro de la parte superior de la hoja “Resultados”
B13: Nota: El proceso de lectura, organización y comprobación de datos puede durar unos minutos, representados por una barra de evolución.
B14: En la parte final del proceso nos informará de que es posible calcular la geometría del edificio, siempre que esté correctamente definida
B15: Si saltamos esta parte podremos realizar el cálculo más adelante con la macro de la parte derecha de la hoja “Resultados”
B17: Al final del proceso se indica el tiempo de ejecución de la misma, que podemos tomar de referencia para futuros lecturas de archivos, ya que depende de la velocidad
B18: de procesador de nuestro equipo y del tamaño y complejidad del archivo que estamos leyendo.
B20: Si la barra de estado permanece inalterable durante más de 2 minutos, quiere decir que la macro no ha sido capaz de interpretar los datos del archivo
B21: La principal causa de este fallo es un error en la creación el modelo en HULC por el que algún elemento necesario está ausente
B23: UTILIDADES ACTUALES
B25: ORGANIZACIÓN DE LOS ELEMENTOS
B27: La herramienta organiza los datos del archivo seleccionados en las siguientes hojas:
B28: Datos: Se depuran los textos del archivo corrigiendo errores de tipografía y organizándolos en dos columnas: descripción y valor
B29: Espacios: Listados de los espacios que componen el modelo del edificio y sus características
B30: En el caso de calcular la geometrá aporta los datos la superficie, altura y volumen de cada espacio
B31: Poligonos: Listados de los polígonos asociados a espacios y cerramientos con las descripción de sus coordenadas.
B32: En el caso de calcular la geometrá aporta los datos de longitud de cada lado del poligono y de la superficie total del mismo
B33: Fachadas: Listado de todos los elementos que componen los cerramientos exteriores, lo que incluye cubiertas planas y suelos en contacto con el exterior.
B34: Interiores: Listado de los elementos de división interior
B35: Terreno: Listado de los cerramientos en contacto con el terreno
B36: Cubierta: Listado de los paramentos generados como "cerramientos especiales", como el caso de cubiertas inclinadas
B37: Ventanas: Listado delos huecos de cerrameintos empleados en el modelo con sus características
B39: Comp_Opacos: listado de las capas y metriales que componene los cerramientos opacos del modelo, así como su espesor parcial y total.
B42: VISUALIZADOR DE POLIGONOS
B44: Desde la hoja “Resultados” es posible seleccionar y visualizar el trazado de todos los polígonos que componen el modelo
B62: COMPROBACIÓN DE ERRORES
B64: 1.- Comprobación de que todos los espacios disponen de un elemento de techo asociado
B65: 2.- Comprobación de que todo cerramiento opaco dispone de una composición constructiva asociada
B66: 3.- En el caso de disponer de sistemas con unidades de impulsión de aire, comprueba que la suma de los caudales de las UTs es igual al caudal total del equipo

Sheet Resultados
B2: Lectura de archivos de GEOMETRIA Y DATOS de la Herramienta Unificada LIDER - CALENER. Autor: Oscar Redondo Rivera | H2: =Info!M2 -> Versión Mayo 2016
E4: Leer la info antes de ejecutar la macro | F4: Licencia de uso:
F5: Total | G5: Habitable | H5: No habitable
B6: Archivo | C6: C:\Users\Propietario\Desktop\18unifa_torrejon_fdo.txt | E6: Superficie | F6: =G6+H6 -> 220.45 m2 | G6: 148.62 m2 | H6: 71.83 m2
B7: Copia de datos | C7: OK | E7: Volumen | F7: =G7+H7 -> 557.27 m3 | G7: 374.38 m3 | H7: 182.90 m3
B8: Lectura de datos | C8: OK | E8: Altura libre promedio | F8: =IF(F6=0,0,F7/F6) -> 2.53 m | G8: =IF(G6=0,0,G7/G6) -> 2.52 m | H8: =IF(H6=0,0,H7/H6) -> 2.55 m
B9: Identificación espacios | C9: OK | E9: Tasa ventilación r/h | G9: 0.38 r/h
B10: Comprobaciones | C10: OK | K10: n (r/h) | L10: l/s
B11: Calculo poligonos | C11: OK | E11: Caudal de ventilación | G11: =G7*G9/3.6 -> 40.00 l/s | J11: caudal para | K11: 0.35 | L11: =(G7*K11)/3.6 -> 36.40
B13: Provincia | C13: Madrid | E13: COMPROBACIONES ACTUALES
B14: Localidad | C14: TorrejondeArdoz | E14: Todos los espacios disponen de cierre superior asignado | H14: SI
B15: Zona climática | C15: D3 | E15: Todos los cerramientos tienen material asignado | H15: SI
B16: Altitud | C16: 585 | E16: Suma de los caudales de las UTs = Caudal total equipo | H16: Sin equipos
B17: Azimut | C17: 66
B18: Tipologia | C18: Unifamiliar
B20: Trazado de Poligonos | C20: POL_P04_E01_T06 | F20: =IF(Poligonos!F2<>0,"SI","NO") -> NO

Sheet Avisos
A1: Espacios sin forjado sup | B1: Elementos sin material | C1: tipo | D1: Elemento sin asignación

Sheet SIS_Caudal
A1: Suma de Uts | B1: Sistema | C1: Caudal Total | D1: Caudal UT

Sheet Datos
A1: ?xmlversion | B1: 1.0encoding | C1: UTF-8?
A2: CTE-HE-XML
A3: DatosGenerales
A4: refCatastralninguno/refCatastral
A5: tipoViviendaUnifamiliar/tipoVivienda
A6: anio/
A7: tipoDefinicionNuevo/tipoDefinicion
A8: comunidadMadrid/comunidad
A9: provinciaMadrid/provincia
A10: poblacionTorrejondeArdoz/poblacion
A11: zonaClimaticaD3/zonaClimatica
A12: altitud585/altitud
A13: tipoUsoResidencial/tipoUso
A14: claseHigrometria3/claseHigrometria
A15: numRenovacionesHS31/numRenovacionesHS3
A16: ventilacionPorDefectoNO/ventilacionPorDefecto
A17: numViviendasBloque1/numViviendasBloque
A18: valorImpulsionAire40/valorImpulsionAire
A19: valorExtraccionAireCocina1/valorExtraccionAireCocina
A20: valorExtraccionAireBanos1/valorExtraccionAireBanos
A21: valorExtraccionAireCocinasBanos2.00/valorExtraccionAireCocinasBanos
A22: vent_p125.00/vent_p1
A23: vent_p225.00/vent_p2
A24: vent_p325.00/vent_p3
A25: vent_p425.00/vent_p4
A26: nomPro18viviendasunifamiliaresygarajecomun.Parcelas1a10/nomPro
A27: usoProviviendasunifamiliaresdedistintostipos/usoPro
A28: usoProOtros/
A29: comunidadProMadrid/comunidadPro
A30: proProMadrid/proPro
A31: locProTorrejondeArdoz/locPro
A32: cpPro/
A33: tipoViaProCalle/tipoViaPro
A34: viaProC//viaPro
A35: tipoNProNum/tipoNPro
A36: nPro-/nPro
A37: blqPro-/blqPro
A38: portalPro-/portalPro
A39: escPro-/escPro
A40: pisoPro-/pisoPro
A41: puertaPro-/puertaPro
A42: datosAdicPro-/datosAdicPro
A43: normativaEdificacion-Seleccionedelalista-/normativaEdificacion
A44: normativaInstalaciones-Seleccionedelalista-/normativaInstalaciones
A45: normativaOtros-Seleccionedelalista-/normativaOtros
A46: normativaEdificacionOtros/
A47: normativaInstalacionesOtros/
A48: normativaOtrosOtros/
A49: superficieConstruida0.00/superficieConstruida
A50: alturaTotal0.00/alturaTotal
A51: plantaSobreRasante0/plantaSobreRasante
A52: plantaBajoRasante0/plantaBajoRasante
A53: EEGeneradaAutoconsumida0/EEGeneradaAutoconsumida
A54: panelFotoVoltaicoAutoConsumido0/panelFotoVoltaicoAutoConsumido
A55: puertaPro-/puertaPro
A56: cifAutCIF/cifAut
A57: nomAutNombres/nomAut
A58: apellido1AutApellido1/apellido1Aut
A59: apellido2AutApellido2/apellido2Aut
A60: razAutRazonsocial/razAut
A61: NIFEntidad/
A62: comunidadAut-Seleccionedelalista-/comunidadAut
A63: proAut-Seleccionedelalista-/proAut
A64: locAutTorrejondeArdoz/locAut
A65: cpAutCodigopostal/cpAut
A66: tipoViaAutCalle/tipoViaAut
A67: viaAutNombrecalle/viaAut
A68: tipoNAutNum/tipoNAut
A69: nAut-/nAut
A70: blqAut-/blqAut
A71: portalAut-/portalAut
A72: escAut-/escAut
A73: pisoAut-/pisoAut
A74: puertaAut-/puertaAut
A75: datosAdicAut-/datosAdicAut
A76: correoAut-/correoAut
A77: telAut-/telAut
A78: titulacionAut-Seleccionedelalista-/titulacionAut
A79: titulacionOtrosAut-/titulacionOtrosAut
A80: colegioAut-Seleccionedelalista-/colegioAut
A81: colegioOtrosAut-/colegioOtrosAut
A82: numeroColegiadoAut-/numeroColegiadoAut
A83: fechaVisita01/01/00/fechaVisita
A84: extInfoNO/extInfo
A85: pathArchivoMeteorologicoSeleccionadoC:\ProgramasCTEyCEE\DatosClimaticos\GENERICOS\zonaD3.bin/pathArchivoMeteorologicoSeleccionado
A86: imgEdifEspecifiqueimagenparaeledificio/imgEdif
A87: imgPlanoEspecifiqueimagenparaelplanodesituaciÃƒÂ³ndeledificio/imgPlano
A88: MesIniPerSomJunio/MesIniPerSom
A89: MesFinPerSomSeptiembre/MesFinPerSom
A90: energiaGTtrue/energiaGT
A91: cambiosNO/cambios
A92: cambioscalenerNO/cambioscalener
A93: /DatosGenerales
A94: EntradaGraficaLIDER
A95: ![CDATA[$+----------------------------------------------------+
A96: $FICHEROGENERADOCONCTE-HE2013
A97: $+----------------------------------------------------+
A98: $
A99: $PROGRAM | B99: LIDER
A100: $
A101: $
A102: CAMBIO | B102: SI
A103: CAMBIO-CALENER | B103: NO
A104: EEGeneradaAutoconsumida | B104: 0
A105: PANELFOTOVOLTAICOAUTOCONSUMIDO | B105: 0
A106: ENERGIAGT | B106: YES
A107: DATOSGENERALES | B107: GENERAL-DATA
A108: TYPE-HOUSING | B108: Unifamiliar
A109: YEAR
A110: TYPE-DEFINITION | B110: Nuevo
A111: COMUNITY | B111: Madrid
A112: CITY | B112: Madrid
A113: TOWN | B113: TorrejondeArdoz
A114: ZONE | B114: D3
A115: ALTITUDE | B115: 585
A116: ArchivoMetSel | B116: C:\ProgramasCTEyCEE\DatosClimaticos\GENERICOS\zonaD3.bin
A117: TIPOUSO | B117: Residencial
A118: CLASEHIGROMETRIA | B118: 3
A119: NUMRENHS3 | B119: 1
A120: NUM-VIVIENDAS | B120: 1
A121: VENTILACION-POR-DEFECTO | B121: NO
A122: VALORES-VENTILACION | B122: 40 | C122: 1 | D122: 1 | E122: 2
A123: VALORES-PORCENTAJES | B123: 25 | C123: 25,000,000 | D123: 25,000,000 | E123: 25
A124: NAME-PROJECT | B124: 18viviendasunifamiliaresygarajecomun.Parcelas1a10
A125: USE-PROJECT | B125: viviendasunifamiliaresdedistintostipos
A126: USE-PROJECT-OTHER
A127: COMUNITY-PROJECT | B127: Madrid
A128: PROVINCE-PROJECT | B128: Madrid
A129: LOCALITY-PROJECT | B129: TorrejondeArdoz
A130: POSTCODE-PROJECT
A131: WAY-PROJECT | B131: C/
A132: WAY-TYPE-PROJECT | B132: Calle
A133: NUMBER-TYPE-PROJECT | B133: Num
A134: NUMBER-PROJECT | B134: -
A135: BLOCK-PROJECT | B135: -
A136: PORTAL-PROJECT | B136: -
A137: STAIR-PROJECT | B137: -
A138: FLOOR-PROJECT | B138: -
A139: GATE-PROJECT | B139: -
A140: EXTRAINFO-PROJECT | B140: -
A141: NORMATIVE-BUILDING | B141: -Seleccionedelalista-
A142: NORMATIVE-SYSTEM | B142: -Seleccionedelalista-
A143: NORMATIVE-OTHER | B143: -Seleccionedelalista-
A144: NORMATIVE-BUILDING-OTHER
A145: NORMATIVE-SYSTEM-OTHER
A146: NORMATIVE-OTHER-OTHER
A147: BUILDING-AREA | B147: 0
A148: TOTAL-HEIGHT | B148: 0
A149: FLOORS-ABOVE-GROUND-LEVEL | B149: 0
A150: FLOORS-BEYOND-GROUND-LEVEL | B150: 0
A151: IMAGE-PROJECT | B151: Especifiqueimagenparaeledificio
A152: TEST-PROJECT | B152: null
A153: CIF-AUTHOR | B153: CIF
A154: NAME-AUTHOR | B154: Nombres
A155: FIRSTNAME1-AUTHOR | B155: Apellido1
A156: FIRSTNAME2-AUTHOR | B156: Apellido2
A157: TRADE-NAME-AUTHOR | B157: Razonsocial
A158: TRADE-ID
A159: COMUNITY-AUTHOR | B159: Madrid
A160: PROVINCE-AUTHOR | B160: Madrid
A161: LOCALITY-AUTHOR | B161: TorrejondeArdoz
A162: POSTCODE-AUTHOR
A163: WAY-AUTHOR | B163: C/
A164: WAY-TYPE-AUTHOR | B164: Calle
A165: NUMBER-TYPE-AUTHOR | B165: Num
A166: NUMBER-AUTHOR | B166: -
A167: BLOCK-AUTHOR | B167: -
A168: PORTAL-AUTHOR | B168: -
A169: STAIR-AUTHOR | B169: -
A170: FLOOR-AUTHOR | B170: -
A171: GATE-AUTHOR | B171: -
A172: EXTRAINFO-AUTHOR | B172: -
A173: EMAIL-AUTHOR | B173: -
A174: TELEPHONE-AUTHOR | B174: -
A175: TITULACION | B175: -Seleccionedelalista-
A176: TITULACION-OTROS | B176: -
A177: COLEGIO | B177: -Seleccionedelalista-
A178: COLEGIO-OTROS | B178: -
A179: COLEGIO-NUMERO | B179: -
A180: IMAGE-AUTHOR | B180: EspecifiqueimagenparaelplanodesituaciÃƒÂ³ndeledificio
A181: MESINIPERSOM | B181: Junio
A182: MESFINPERSOM | B182: Septiembre
A183: VISIT-DATE | B183: 2000-01-01
A184: EXTINFO | B184: NO
A185: ..
A186: Defectos | B186: DEFECTOS
A187: PEConstruccionV
A188: VTIPO
A189: VX | B189: 0
A190: VY | B190: 1
A191: VAnchura | B191: 1
A192: VAltura | B192: 1
A193: VRetranqueo | B193: 0
A194: ForjadosExteriores | B194: C01_CUB_01_Cubierta_plana_tr
A195: CUConstruccion
A196: MedianerasConstruccion
A197: ForjadosTerreno
A198: TEConstruccion
A199: PEConstruccionH
A200: ParticionesInterioresConstruccion
... 5892 more rows

Sheet Espacios
A1: Espacios | B1: Datos | C1: Superficie | D1: Altura | E1: Espesor forj. | F1: Alt TOTAL | G1: Volumen
A2: P01_E01_Garaje | B2: SPACE
A3: X | B3: 0
A4: Z | B4: 0
A5: Y | B5: 0
A6: AZIMUTH | B6: 0
A7: HEIGHT | B7: 3,004
A8: SHAPE | B8: POLYGON
A9: POLYGON | B9: POL_P01_E01 | C9: 71.83 | D9: 3.00 | E9: 0.46 | F9: 2.55 | G9: 182.90
A10: TYPE | B10: UNHABITED
A11: ..
A12: P02_E01_Cocina | B12: SPACE
A13: X | B13: 0
A14: Z | B14: 0
A15: Y | B15: 0
A16: AZIMUTH | B16: 0
A17: HEIGHT | B17: 3
A18: SHAPE | B18: POLYGON
A19: POLYGON | B19: POL_P02_E01 | C19: 15.34 | D19: 3.00 | E19: 0.69 | F19: 2.31 | G19: 35.50
A20: TYPE | B20: CONDITIONED
A21: ..
A22: P02_E02_Salon | B22: SPACE
A23: X | B23: 0
A24: Z | B24: 0
A25: Y | B25: 0
A26: AZIMUTH | B26: 0
A27: HEIGHT | B27: 3,015
A28: SHAPE | B28: POLYGON
A29: POLYGON | B29: POL_P02_E02 | C29: 35.80 | D29: 3.02 | E29: 0.59 | F29: 2.42 | G29: 86.67
A30: TYPE | B30: CONDITIONED
A31: ..
A32: P02_E03_Hall | B32: SPACE
A33: X | B33: 0
A34: Z | B34: 0
A35: Y | B35: 0
A36: AZIMUTH | B36: 0
A37: HEIGHT | B37: 3
A38: SHAPE | B38: POLYGON
A39: POLYGON | B39: POL_P02_E03 | C39: 14.53 | D39: 3.00 | E39: 0.69 | F39: 2.31 | G39: 33.63
A40: TYPE | B40: CONDITIONED
A41: ..
A42: P02_E04_Aseo | B42: SPACE
A43: X | B43: 0
A44: Z | B44: 0
A45: Y | B45: 0
A46: AZIMUTH | B46: 0
A47: HEIGHT | B47: 3
A48: SHAPE | B48: POLYGON
A49: POLYGON | B49: POL_P02_E04 | C49: 4.36 | D49: 3.00 | E49: 0.69 | F49: 2.31 | G49: 10.09
A50: TYPE | B50: CONDITIONED
A51: ..
A52: P03_E01_Dp | B52: SPACE
A53: X | B53: 0
A54: Z | B54: 0
A55: Y | B55: 0
A56: AZIMUTH | B56: 0
A57: HEIGHT | B57: 3.27
A58: SHAPE | B58: POLYGON
A59: POLYGON | B59: POL_P03_E01 | C59: 20.44 | D59: 3.27 | E59: 0.59 | F59: 2.68 | G59: 54.69
A60: TYPE | B60: CONDITIONED
A61: ..
A62: P03_E02_B1 | B62: SPACE
A63: X | B63: 0
A64: Z | B64: 0
A65: Y | B65: 0
A66: AZIMUTH | B66: 0
A67: HEIGHT | B67: 3,279
A68: SHAPE | B68: POLYGON
A69: POLYGON | B69: POL_P03_E02 | C69: 5.19 | D69: 3.28 | E69: 0.59 | F69: 2.69 | G69: 13.94
A70: TYPE | B70: CONDITIONED
A71: ..
A72: P03_E03_D1 | B72: SPACE
A73: X | B73: 0
A74: Z | B74: 0
A75: Y | B75: 0
A76: AZIMUTH | B76: 0
A77: HEIGHT | B77: 3,279
A78: SHAPE | B78: POLYGON
A79: POLYGON | B79: POL_P03_E03 | C79: 15.34 | D79: 3.28 | E79: 0.59 | F79: 2.69 | G79: 41.18
A80: TYPE | B80: CONDITIONED
A81: ..
A82: P03_E04_Dist | B82: SPACE
A83: X | B83: 0
A84: Z | B84: 0
A85: Y | B85: 0
A86: AZIMUTH | B86: 0
A87: HEIGHT | B87: 3,072
A88: SHAPE | B88: POLYGON
A89: POLYGON | B89: POL_P03_E04 | C89: 10.20 | D89: 3.07 | E89: 0.59 | F89: 2.48 | G89: 25.28
A90: TYPE | B90: CONDITIONED
A91: ..
A92: P03_E05_D2 | B92: SPACE
A93: X | B93: 0
A94: Z | B94: 0
A95: Y | B95: 0
A96: AZIMUTH | B96: 0
A97: HEIGHT | B97: 3,265
A98: SHAPE | B98: POLYGON
A99: POLYGON | B99: POL_P03_E05 | C99: 15.81 | D99: 3.27 | E99: 0.59 | F99: 2.67 | G99: 42.23
A100: TYPE | B100: CONDITIONED
A101: ..
A102: P03_E06_Bp | B102: SPACE
A103: X | B103: 0
A104: Z | B104: 0
A105: Y | B105: 0
A106: AZIMUTH | B106: 0
A107: HEIGHT | B107: 3,279
A108: SHAPE | B108: POLYGON
A109: POLYGON | B109: POL_P03_E06 | C109: 4.82 | D109: 3.28 | E109: 0.59 | F109: 2.69 | G109: 12.93
A110: TYPE | B110: CONDITIONED
A111: ..
A112: P04_E01_Caseton | B112: SPACE
A113: X | B113: 0
A114: Z | B114: 0
A115: Y | B115: 0
A116: AZIMUTH | B116: 0
A117: HEIGHT | B117: 3,279
A118: SHAPE | B118: POLYGON
A119: POLYGON | B119: POL_P04_E01 | C119: 6.79 | D119: 3.28 | E119: 0.59 | F119: 2.69 | G119: 18.24
A120: TYPE | B120: CONDITIONED
A121: ..
A122: FIN | B122: FIN
X1440: 27
X1446: 27
X1452: 27

Sheet Poligonos
D1: longitud | E1: superficie | F1: REPITE
A2: POL_P01 | B2: POLYGON | E2: 71.83 | F2: =SUM(F$3:F$1048576) -> 0
A3: V1 | B3: 1.3 | C3: -5.05 | D3: 0.50
A4: V2 | B4: 1.3 | C4: -5.55 | D4: 1.95
A5: V3 | B5: 3.25 | C5: -5.55 | D5: 11.40
A6: V4 | B6: 3.25 | C6: 5.85 | D6: 6.50
A7: V5 | B7: -3.25 | C7: 5.85 | D7: 10.90
A8: V6 | B8: -3.25 | C8: -5.05 | D8: 6.01
A9: ..
A10: POL_P01_E01 | B10: POLYGON | E10: 71.83
A11: V1 | B11: -3.25 | C11: -5.05 | D11: 4.55
A12: V2 | B12: 1.3 | C12: -5.05 | D12: 0.50
A13: V3 | B13: 1.3 | C13: -5.55 | D13: 1.95
A14: V4 | B14: 3.25 | C14: -5.55 | D14: 11.40
A15: V5 | B15: 3.25 | C15: 5.85 | D15: 6.50
A16: V6 | B16: -3.25 | C16: 5.85 | D16: 6.69
A17: ..
A18: POL_P01_E01_C01 | B18: POLYGON | E18: 32.70
A19: V1 | B19: 0 | C19: 0 | D19: 10.90
A20: V2 | B20: 10.9 | C20: 0 | D20: 3.00
A21: V3 | B21: 10.9 | C21: 3 | D21: 10.90
A22: V4 | B22: 0 | C22: 3 | D22: 3.00
A23: ..
A24: POL_P01_E01_C02 | B24: POLYGON | E24: 19.50
A25: V1 | B25: 0 | C25: 0 | D25: 6.50
A26: V2 | B26: 6.5 | C26: 0 | D26: 3.00
A27: V3 | B27: 6.5 | C27: 3 | D27: 6.50
A28: V4 | B28: 0 | C28: 3 | D28: 3.00
A29: ..
A30: POL_P01_E01_C03 | B30: POLYGON | E30: 13.84
A31: V1 | B31: 0 | C31: 0 | D31: 4.55
A32: V2 | B32: 4.55 | C32: 0 | D32: 3.16
A33: V3 | B33: 4.55 | C33: 3.1576 | D33: 1.20
A34: V4 | B34: 3.35028 | C34: 3.1576 | D34: 0.16
A35: V5 | B35: 3.35028 | C35: 3 | D35: 3.35
A36: V6 | B36: 0 | C36: 3 | D36: 3.00
A37: ..
A38: POL_P01_E01_C04 | B38: POLYGON | E38: 1.50
A39: V1 | B39: 0 | C39: 0 | D39: 0.50
A40: V2 | B40: 0.5 | C40: 0 | D40: 3.00
A41: V3 | B41: 0.5 | C41: 3 | D41: 0.50
A42: V4 | B42: 0 | C42: 3 | D42: 3.00
A43: ..
A44: POL_P01_E01_C05 | B44: POLYGON | E44: 5.85
A45: V1 | B45: 0 | C45: 0 | D45: 1.95
A46: V2 | B46: 1.95 | C46: 0 | D46: 3.00
A47: V3 | B47: 1.95 | C47: 3 | D47: 1.95
A48: V4 | B48: 0 | C48: 3 | D48: 3.00
A49: ..
A50: POL_P01_E01_C06 | B50: POLYGON | E50: 34.20
A51: V1 | B51: 0 | C51: 0 | D51: 11.40
A52: V2 | B52: 11.4 | C52: 0 | D52: 3.00
A53: V3 | B53: 11.4 | C53: 3 | D53: 11.40
A54: V4 | B54: 0 | C54: 3 | D54: 3.00
A55: ..
A56: POL_P01_E01_S07 | B56: POLYGON | E56: 71.83
A57: V1 | B57: 0 | C57: 0 | D57: 11.40
A58: V2 | B58: 11.4 | C58: 0 | D58: 1.95
A59: V3 | B59: 11.4 | C59: 1.95 | D59: 0.50
A60: V4 | B60: 10.9 | C60: 1.95 | D60: 4.55
A61: V5 | B61: 10.9 | C61: 6.5 | D61: 10.90
A62: V6 | B62: 0 | C62: 6.5 | D62: 6.50
A63: ..
A64: POL_P01_E01_T08 | B64: POLYGON | E64: 1.79
A65: V1 | B65: 0 | C65: 0 | D65: 1.20
A66: V2 | B66: 1.1995 | C66: 0 | D66: 1.49
A67: V3 | B67: 1.1995 | C67: 1.49 | D67: 1.20
A68: V4 | B68: 0 | C68: 1.49 | D68: 1.49
A69: ..
A70: POL_P02 | B70: POLYGON | E70: 70.04
A71: V1 | B71: 0.1003 | C71: -3.56 | D71: 1.20
A72: V2 | B72: 1.3 | C72: -3.56 | D72: 1.99
A73: V3 | B73: 1.3 | C73: -5.55 | D73: 1.95
A74: V4 | B74: 3.25 | C74: -5.55 | D74: 11.40
A75: V5 | B75: 3.25 | C75: 5.85 | D75: 6.50
A76: V6 | B76: -3.25 | C76: 5.85 | D76: 10.90
A77: V7 | B77: -3.25 | C77: -5.05 | D77: 3.35
A78: V8 | B78: 0.1003 | C78: -5.05 | D78: 5.05
A79: ..
A80: POL_P02_E01 | B80: POLYGON | E80: 15.34
A81: V1 | B81: -3.25 | C81: -5.05 | D81: 3.35
A82: V2 | B82: 0.1003 | C82: -5.05 | D82: 1.49
A83: V3 | B83: 0.1003 | C83: -3.56 | D83: 0.37
A84: V4 | B84: -0.1647 | C84: -3.295 | D84: 3.08
A85: V5 | B85: -0.1647 | C85: -0.2166 | D85: 3.09
A86: V6 | B86: -3.25 | C86: -0.2166 | D86: 3.26
A87: ..
A88: POL_P02_E01_C01 | B88: POLYGON | E88: 14.50
A89: V1 | B89: 0 | C89: 0 | D89: 4.83
A90: V2 | B90: 4.8334 | C90: 0 | D90: 3.00
A91: V3 | B91: 4.8334 | C91: 3 | D91: 4.83
A92: V4 | B92: 0 | C92: 3 | D92: 3.00
A93: ..
A94: POL_P02_E01_C02 | B94: POLYGON | E94: 10.05
A95: V1 | B95: 0 | C95: 0 | D95: 3.35
A96: V2 | B96: 3.35028 | C96: 0 | D96: 3.00
A97: V3 | B97: 3.3503 | C97: 3 | D97: 3.35
A98: V4 | B98: 0 | C98: 3 | D98: 3.00
A99: ..
A100: POL_P02_E01_C03 | B100: POLYGON | E100: 4.47
A101: V1 | B101: 0 | C101: 0 | D101: 1.49
A102: V2 | B102: 1.49 | C102: 0 | D102: 3.00
A103: V3 | B103: 1.49 | C103: 3 | D103: 1.49
A104: V4 | B104: 0 | C104: 3 | D104: 3.00
A105: ..
A106: POL_P02_E01_C04 | B106: POLYGON | E106: 9.24
A107: V1 | B107: 0 | C107: 0 | D107: 3.08
A108: V2 | B108: 3.0784 | C108: 0 | D108: 3.00
A109: V3 | B109: 3.0784 | C109: 3 | D109: 3.08
A110: V4 | B110: 0 | C110: 3 | D110: 3.00
A111: ..
A112: POL_P02_E01_S06 | B112: POLYGON | E112: 15.34
A113: V1 | B113: 0 | C113: 0 | D113: 3.09
A114: V2 | B114: 3.0855 | C114: 0 | D114: 3.08
A115: V3 | B115: 3.0855 | C115: 3.0785 | D115: 0.37
A116: V4 | B116: 3.3505 | C116: 3.3435 | D116: 1.49
A117: V5 | B117: 3.3505 | C117: 4.8335 | D117: 3.35
A118: V6 | B118: 0 | C118: 4.8335 | D118: 4.83
A119: ..
A120: POL_P02_E02 | B120: POLYGON | E120: 35.80
A121: V1 | B121: -3.25 | C121: 5.85 | D121: 6.07
A122: V2 | B122: -3.25 | C122: -0.2166 | D122: 3.09
A123: V3 | B123: -0.1647 | C123: -0.2166 | D123: 1.06
A124: V4 | B124: -0.1647 | C124: 0.8479 | D124: 3.41
A125: V5 | B125: 3.25 | C125: 0.8479 | D125: 5.00
A126: V6 | B126: 3.25 | C126: 5.85 | D126: 6.69
A127: ..
A128: POL_P02_E02_C01 | B128: POLYGON | E128: 18.20
A129: V1 | B129: 0 | C129: 0 | D129: 6.07
A130: V2 | B130: 6.0666 | C130: 0 | D130: 3.00
A131: V3 | B131: 6.0666 | C131: 3 | D131: 6.07
A132: V4 | B132: 0 | C132: 3 | D132: 3.00
A133: ..
A134: POL_P02_E02_C02 | B134: POLYGON | E134: 20.39
A135: V1 | B135: 0 | C135: 0 | D135: 6.50
A136: V2 | B136: 6.5 | C136: 0 | D136: 3.00
A137: V3 | B137: 6.5 | C137: 3 | D137: 1.60
A138: V4 | B138: 4.90074 | C138: 3 | D138: 0.28
A139: V5 | B139: 4.90074 | C139: 3.279 | D139: 3.20
A140: V6 | B140: 1.7 | C140: 3.279 | D140: 0.28
A141: V7 | B141: 1.7 | C141: 3 | D141: 1.70
A142: V8 | B142: 0 | C142: 3 | D142: 3.00
A143: ..
A144: POL_P02_E02_C03 | B144: POLYGON | E144: 15.01
A145: V1 | B145: 0 | C145: 0 | D145: 5.00
A146: V2 | B146: 5.0021 | C146: 0 | D146: 3.00
A147: V3 | B147: 5.0021 | C147: 3 | D147: 5.00
A148: V4 | B148: 0 | C148: 3 | D148: 3.00
A149: ..
A150: POL_P02_E02_C04 | B150: POLYGON | E150: 3.19
A151: V1 | B151: 0 | C151: 0 | D151: 1.06
A152: V2 | B152: 1.0645 | C152: 0 | D152: 3.00
A153: V3 | B153: 1.0645 | C153: 3 | D153: 1.06
A154: V4 | B154: 0 | C154: 3 | D154: 3.00
A155: ..
A156: POL_P02_E02_C05 | B156: POLYGON | E156: 10.24
A157: V1 | B157: 0 | C157: 0 | D157: 3.41
A158: V2 | B158: 3.4147 | C158: 0 | D158: 3.00
A159: V3 | B159: 3.4147 | C159: 3 | D159: 3.41
A160: V4 | B160: 0 | C160: 3 | D160: 3.00
A161: ..
A162: POL_P02_E02_C06 | B162: POLYGON | E162: 9.26
A163: V1 | B163: 0 | C163: 0 | D163: 3.09
A164: V2 | B164: 3.0853 | C164: 0 | D164: 3.00
A165: V3 | B165: 3.0853 | C165: 3 | D165: 3.09
A166: V4 | B166: 0 | C166: 3 | D166: 3.00
A167: ..
A168: POL_P02_E02_S07 | B168: POLYGON | E168: 35.80
A169: V1 | B169: 0 | C169: 0 | D169: 6.07
A170: V2 | B170: 6.0665 | C170: 0 | D170: 6.50
A171: V3 | B171: 6.0665 | C171: 6.5 | D171: 5.00
A172: V4 | B172: 1.0645 | C172: 6.5 | D172: 3.41
A173: V5 | B173: 1.0645 | C173: 3.0855 | D173: 1.06
A174: V6 | B174: 0 | C174: 3.0855 | D174: 3.09
A175: ..
A176: POL_P02_E02_T12 | B176: POLYGON | E176: 1.92
A177: V1 | B177: 0 | C177: 0 | D177: 0.60
A178: V2 | B178: 0.6 | C178: 0 | D178: 3.20
A179: V3 | B179: 0.6 | C179: 3.2005 | D179: 0.60
A180: V4 | B180: 0 | C180: 3.2005 | D180: 3.20
A181: ..
A182: POL_P02_E03 | B182: POLYGON | E182: 14.53
A183: V1 | B183: -0.1647 | C183: -0.2166 | D183: 3.08
A184: V2 | B184: -0.1647 | C184: -3.295 | D184: 0.37
A185: V3 | B185: 0.1003 | C185: -3.56 | D185: 1.20
A186: V4 | B186: 1.3 | C186: -3.56 | D186: 0.37
A187: V5 | B187: 1.565 | C187: -3.295 | D187: 1.69
A188: V6 | B188: 3.25 | C188: -3.295 | D188: 4.14
A189: V7 | B189: 3.25 | C189: 0.8479 | D189: 3.41
A190: V8 | B190: -0.1647 | C190: 0.8479 | D190: 0.86
A191: ..
A192: POL_P02_E03_C01 | B192: POLYGON | E192: 3.60
A193: V1 | B193: 0 | C193: 0 | D193: 1.20
A194: V2 | B194: 1.1997 | C194: 0 | D194: 3.00
A195: V3 | B195: 1.1997 | C195: 3 | D195: 1.20
A196: V4 | B196: 0 | C196: 3 | D196: 3.00
A197: ..
A198: POL_P02_E03_C02 | B198: POLYGON | E198: 12.43
A199: V1 | B199: 0 | C199: 0 | D199: 4.14
A200: V2 | B200: 4.1429 | C200: 0 | D200: 3.00
... 431 more rows

Sheet Fachadas
A1: CERRAMIENTO EXTERIOR | B1: Valores | C1: Superficie
A2: P02_E01_C1_e | B2: EXTERIOR-WALL
A3: ABSORPTANCE | B3: 0.4
A4: COMPROBAR-REQUISITOS-MINIMOS | B4: YES
A5: TYPE_ABSORPTANCE | B5: 1
A6: COLOR_ABSORPTANCE | B6: 0
A7: DEGREE_ABSORPTANCE | B7: 2
A8: CONSTRUCCION_MURO | B8: C16_MF01_Fachada_doble_hoja
A9: CONSTRUCTION | B9: C16_MF01_Fachada_doble_hoja0.40
A10: X | B10: -3.25
A11: Y | B11: -0.217
A12: Z | B12: 0
A13: AZIMUTH | B13: 270
A14: TILT | B14: 90
A15: POLYGON | B15: POL_P02_E01_C01
A16: ..
A17: P02_E01_C2_e | B17: EXTERIOR-WALL
A18: ABSORPTANCE | B18: 0.4
A19: COMPROBAR-REQUISITOS-MINIMOS | B19: YES
A20: TYPE_ABSORPTANCE | B20: 1
A21: COLOR_ABSORPTANCE | B21: 0
A22: DEGREE_ABSORPTANCE | B22: 2
A23: CONSTRUCCION_MURO | B23: C16_MF01_Fachada_doble_hoja
A24: CONSTRUCTION | B24: C16_MF01_Fachada_doble_hoja0.40
A25: X | B25: -3.25
A26: Y | B26: -5.05
A27: Z | B27: 0
A28: AZIMUTH | B28: 180
A29: TILT | B29: 90
A30: POLYGON | B30: POL_P02_E01_C02
A31: ..
A32: P02_E01_C3_e | B32: EXTERIOR-WALL
A33: ABSORPTANCE | B33: 0.4
A34: COMPROBAR-REQUISITOS-MINIMOS | B34: YES
A35: TYPE_ABSORPTANCE | B35: 1
A36: COLOR_ABSORPTANCE | B36: 0
A37: DEGREE_ABSORPTANCE | B37: 2
A38: CONSTRUCCION_MURO | B38: C16_MF01_Fachada_doble_hoja
A39: CONSTRUCTION | B39: C16_MF01_Fachada_doble_hoja0.40
A40: X | B40: 0.1
A41: Y | B41: -5.05
A42: Z | B42: 0
A43: AZIMUTH | B43: 90
A44: TILT | B44: 90
A45: POLYGON | B45: POL_P02_E01_C03
A46: ..
A47: P02_E02_C1_e | B47: EXTERIOR-WALL
A48: ABSORPTANCE | B48: 0.4
A49: COMPROBAR-REQUISITOS-MINIMOS | B49: YES
A50: TYPE_ABSORPTANCE | B50: 1
A51: COLOR_ABSORPTANCE | B51: 0
A52: DEGREE_ABSORPTANCE | B52: 2
A53: CONSTRUCCION_MURO | B53: C17_MF01_Fachada_doble_hoja
A54: CONSTRUCTION | B54: C17_MF01_Fachada_doble_hoja0.40
A55: X | B55: -3.25
A56: Y | B56: 5.85
A57: Z | B57: 0
A58: AZIMUTH | B58: 270
A59: TILT | B59: 90
A60: POLYGON | B60: POL_P02_E02_C01
A61: ..
A62: P02_E02_C2_e | B62: EXTERIOR-WALL
A63: ABSORPTANCE | B63: 0.4
A64: COMPROBAR-REQUISITOS-MINIMOS | B64: YES
A65: TYPE_ABSORPTANCE | B65: 1
A66: COLOR_ABSORPTANCE | B66: 0
A67: DEGREE_ABSORPTANCE | B67: 2
A68: CONSTRUCCION_MURO | B68: C17_MF01_Fachada_doble_hoja
A69: CONSTRUCTION | B69: C17_MF01_Fachada_doble_hoja0.40
A70: X | B70: 3.25
A71: Y | B71: 5.85
A72: Z | B72: 0
A73: AZIMUTH | B73: 0
A74: TILT | B74: 90
A75: POLYGON | B75: POL_P02_E02_C02
A76: ..
A77: P02_E03_C1_e | B77: EXTERIOR-WALL
A78: ABSORPTANCE | B78: 0.4
A79: COMPROBAR-REQUISITOS-MINIMOS | B79: YES
A80: TYPE_ABSORPTANCE | B80: 1
A81: COLOR_ABSORPTANCE | B81: 0
A82: DEGREE_ABSORPTANCE | B82: 2
A83: CONSTRUCCION_MURO | B83: C17_MF01_Fachada_doble_hoja
A84: CONSTRUCTION | B84: C17_MF01_Fachada_doble_hoja0.40
A85: X | B85: 0.1
A86: Y | B86: -3.56
A87: Z | B87: 0
A88: AZIMUTH | B88: 180
A89: TILT | B89: 90
A90: POLYGON | B90: POL_P02_E03_C01
A91: ..
A92: P02_E04_C1_e | B92: EXTERIOR-WALL
A93: ABSORPTANCE | B93: 0.4
A94: COMPROBAR-REQUISITOS-MINIMOS | B94: YES
A95: TYPE_ABSORPTANCE | B95: 1
A96: COLOR_ABSORPTANCE | B96: 0
A97: DEGREE_ABSORPTANCE | B97: 2
A98: CONSTRUCCION_MURO | B98: C16_MF01_Fachada_doble_hoja
A99: CONSTRUCTION | B99: C16_MF01_Fachada_doble_hoja0.40
A100: X | B100: 1.3
A101: Y | B101: -3.56
A102: Z | B102: 0
A103: AZIMUTH | B103: 270
A104: TILT | B104: 90
A105: POLYGON | B105: POL_P02_E04_C01
A106: ..
A107: P02_E04_C2_e | B107: EXTERIOR-WALL
A108: ABSORPTANCE | B108: 0.4
A109: COMPROBAR-REQUISITOS-MINIMOS | B109: YES
A110: TYPE_ABSORPTANCE | B110: 1
A111: COLOR_ABSORPTANCE | B111: 0
A112: DEGREE_ABSORPTANCE | B112: 2
A113: CONSTRUCCION_MURO | B113: C16_MF01_Fachada_doble_hoja
A114: CONSTRUCTION | B114: C16_MF01_Fachada_doble_hoja0.40
A115: X | B115: 1.3
A116: Y | B116: -5.55
A117: Z | B117: 0
A118: AZIMUTH | B118: 180
A119: TILT | B119: 90
A120: POLYGON | B120: POL_P02_E04_C02
A121: ..
A122: P03_E01_C1_e | B122: EXTERIOR-WALL
A123: ABSORPTANCE | B123: 0.4
A124: COMPROBAR-REQUISITOS-MINIMOS | B124: YES
A125: TYPE_ABSORPTANCE | B125: 1
A126: COLOR_ABSORPTANCE | B126: 0
A127: DEGREE_ABSORPTANCE | B127: 2
A128: CONSTRUCCION_MURO | B128: C17_MF01_Fachada_doble_hoja
A129: CONSTRUCTION | B129: C17_MF01_Fachada_doble_hoja0.40
A130: X | B130: -3.25
A131: Y | B131: -1,605
A132: Z | B132: 0
A133: AZIMUTH | B133: 270
A134: TILT | B134: 90
A135: POLYGON | B135: POL_P03_E01_C01
A136: ..
A137: P03_E01_C2_e | B137: EXTERIOR-WALL
A138: ABSORPTANCE | B138: 0.4
A139: COMPROBAR-REQUISITOS-MINIMOS | B139: YES
A140: TYPE_ABSORPTANCE | B140: 1
A141: COLOR_ABSORPTANCE | B141: 0
A142: DEGREE_ABSORPTANCE | B142: 2
A143: CONSTRUCCION_MURO | B143: C17_MF01_Fachada_doble_hoja
A144: CONSTRUCTION | B144: C17_MF01_Fachada_doble_hoja0.40
A145: X | B145: -3.25
A146: Y | B146: -5.85
A147: Z | B147: 0
A148: AZIMUTH | B148: 180
A149: TILT | B149: 90
A150: POLYGON | B150: POL_P03_E01_C02
A151: ..
A152: P03_E01_C3_e | B152: EXTERIOR-WALL
A153: ABSORPTANCE | B153: 0.4
A154: COMPROBAR-REQUISITOS-MINIMOS | B154: YES
A155: TYPE_ABSORPTANCE | B155: 1
A156: COLOR_ABSORPTANCE | B156: 0
A157: DEGREE_ABSORPTANCE | B157: 2
A158: CONSTRUCCION_MURO | B158: C17_MF01_Fachada_doble_hoja
A159: CONSTRUCTION | B159: C17_MF01_Fachada_doble_hoja0.40
A160: X | B160: -1.8
A161: Y | B161: -5.85
A162: Z | B162: 0
A163: AZIMUTH | B163: 90
A164: TILT | B164: 90
A165: POLYGON | B165: POL_P03_E01_C03
A166: ..
A167: P03_E01_C4_e | B167: EXTERIOR-WALL
A168: ABSORPTANCE | B168: 0.4
A169: COMPROBAR-REQUISITOS-MINIMOS | B169: YES
A170: TYPE_ABSORPTANCE | B170: 1
A171: COLOR_ABSORPTANCE | B171: 0
A172: DEGREE_ABSORPTANCE | B172: 2
A173: CONSTRUCCION_MURO | B173: C17_MF01_Fachada_doble_hoja
A174: CONSTRUCTION | B174: C17_MF01_Fachada_doble_hoja0.40
A175: X | B175: -1.8
A176: Y | B176: -5,255
A177: Z | B177: 0
A178: AZIMUTH | B178: 180
A179: TILT | B179: 90
A180: POLYGON | B180: POL_P03_E01_C04
A181: ..
A182: P03_E01_Suelo3_e | B182: EXTERIOR-WALL
A183: ABSORPTANCE | B183: 0.6
A184: COMPROBAR-REQUISITOS-MINIMOS | B184: YES
A185: TYPE_ABSORPTANCE | B185: 1
A186: COLOR_ABSORPTANCE | B186: 0
A187: DEGREE_ABSORPTANCE | B187: 2
A188: CONSTRUCCION_MURO | B188: C07_Forjado_unidireccional_8
A189: CONSTRUCTION | B189: C07_Forjado_unidireccional_80.60
A190: X | B190: -3.25
A191: Y | B191: -5.85
A192: Z | B192: 0
A193: AZIMUTH | B193: 90
A194: TILT | B194: 180
A195: POLYGON | B195: POL_P03_E01_S12
A196: ..
A197: P03_E01_Dp_FE001 | B197: EXTERIOR-WALL
A198: ABSORPTANCE | B198: 0.6
A199: COMPROBAR-REQUISITOS-MINIMOS | B199: YES
A200: TYPE_ABSORPTANCE | B200: 0
... 252 more rows

Sheet Interiores
A1: PARTICIONES INTERIORES | B1: Valores
A2: P02_E01_C4_i | B2: INTERIOR-WALL
A3: INT-WALL-TYPE | B3: STANDARD
A4: NEXT-TO | B4: P02_E03_Hall
A5: COMPROBAR-REQUISITOS-MINIMOS | B5: NO
A6: CONSTRUCTION | B6: C11_LHD_7cm_BE_Tabique_de_un
A7: X | B7: -0.165
A8: Y | B8: -3,295
A9: Z | B9: 0
A10: AZIMUTH | B10: 90
A11: TILT | B11: 90
A12: POLYGON | B12: POL_P02_E01_C04
A13: ..
A14: P02_E01_Suelo_i | B14: INTERIOR-WALL
A15: INT-WALL-TYPE | B15: STANDARD
A16: NEXT-TO | B16: P01_E01_Garaje
A17: COMPROBAR-REQUISITOS-MINIMOS | B17: NO
A18: CONSTRUCTION | B18: C05_Forjado_unidireccional_6
A19: X | B19: -3.25
A20: Y | B20: -0.216
A21: Z | B21: 0
A22: AZIMUTH | B22: 180
A23: TILT | B23: 180
A24: POLYGON | B24: POL_P02_E01_S06
A25: ..
A26: P02_E02_C3_ia | B26: INTERIOR-WALL
A27: INT-WALL-TYPE | B27: ADIABATIC
A28: COMPROBAR-REQUISITOS-MINIMOS | B28: NO
A29: CONSTRUCTION | B29: C14_MED_01_Medianeria_de_dos
A30: X | B30: 3.25
A31: Y | B31: 0.848
A32: Z | B32: 0
A33: AZIMUTH | B33: 90
A34: TILT | B34: 90
A35: POLYGON | B35: POL_P02_E02_C03
A36: ..
A37: P02_E02_C4_i | B37: INTERIOR-WALL
A38: INT-WALL-TYPE | B38: STANDARD
A39: NEXT-TO | B39: P02_E03_Hall
A40: COMPROBAR-REQUISITOS-MINIMOS | B40: NO
A41: CONSTRUCTION | B41: C12_LHD_7cm_BE_Tabique_de_un
A42: X | B42: -0.165
A43: Y | B43: -0.217
A44: Z | B44: 0
A45: AZIMUTH | B45: 90
A46: TILT | B46: 90
A47: POLYGON | B47: POL_P02_E02_C04
A48: ..
A49: P02_E02_C5_i | B49: INTERIOR-WALL
A50: INT-WALL-TYPE | B50: STANDARD
A51: NEXT-TO | B51: P02_E03_Hall
A52: COMPROBAR-REQUISITOS-MINIMOS | B52: NO
A53: CONSTRUCTION | B53: C12_LHD_7cm_BE_Tabique_de_un
A54: X | B54: -0.165
A55: Y | B55: 0.848
A56: Z | B56: 0
A57: AZIMUTH | B57: 180
A58: TILT | B58: 90
A59: POLYGON | B59: POL_P02_E02_C05
A60: ..
A61: P02_E02_C6_i | B61: INTERIOR-WALL
A62: INT-WALL-TYPE | B62: STANDARD
A63: NEXT-TO | B63: P02_E01_Cocina
A64: COMPROBAR-REQUISITOS-MINIMOS | B64: NO
A65: CONSTRUCTION | B65: C13_LHD_7cm_BE_Tabique_de_un
A66: X | B66: -3.25
A67: Y | B67: -0.217
A68: Z | B68: 0
A69: AZIMUTH | B69: 180
A70: TILT | B70: 90
A71: POLYGON | B71: POL_P02_E02_C06
A72: ..
A73: P02_E02_Suelo_i | B73: INTERIOR-WALL
A74: INT-WALL-TYPE | B74: STANDARD
A75: NEXT-TO | B75: P01_E01_Garaje
A76: COMPROBAR-REQUISITOS-MINIMOS | B76: NO
A77: CONSTRUCTION | B77: C06_Forjado_unidireccional_6
A78: X | B78: -3.25
A79: Y | B79: -0.216
A80: Z | B80: 0
A81: AZIMUTH | B81: 90
A82: TILT | B82: 180
A83: POLYGON | B83: POL_P02_E02_S07
A84: ..
A85: P02_E03_C2_ia | B85: INTERIOR-WALL
A86: INT-WALL-TYPE | B86: ADIABATIC
A87: COMPROBAR-REQUISITOS-MINIMOS | B87: NO
A88: CONSTRUCTION | B88: C14_MED_01_Medianeria_de_dos
A89: X | B89: 3.25
A90: Y | B90: -3,295
A91: Z | B91: 0
A92: AZIMUTH | B92: 90
A93: TILT | B93: 90
A94: POLYGON | B94: POL_P02_E03_C02
A95: ..
A96: P02_E03_C3_i | B96: INTERIOR-WALL
A97: INT-WALL-TYPE | B97: STANDARD
A98: NEXT-TO | B98: P02_E04_Aseo
A99: COMPROBAR-REQUISITOS-MINIMOS | B99: NO
A100: CONSTRUCTION | B100: C13_LHD_7cm_BE_Tabique_de_un
A101: X | B101: 1,565
A102: Y | B102: -3,295
A103: Z | B103: 0
A104: AZIMUTH | B104: 180
A105: TILT | B105: 90
A106: POLYGON | B106: POL_P02_E03_C06
A107: ..
A108: P02_E03_Suelo_i | B108: INTERIOR-WALL
A109: INT-WALL-TYPE | B109: STANDARD
A110: NEXT-TO | B110: P01_E01_Garaje
A111: COMPROBAR-REQUISITOS-MINIMOS | B111: NO
A112: CONSTRUCTION | B112: C06_Forjado_unidireccional_6
A113: X | B113: -0.164
A114: Y | B114: 0.848
A115: Z | B115: 0
A116: AZIMUTH | B116: 180
A117: TILT | B117: 180
A118: POLYGON | B118: POL_P02_E03_S07
A119: ..
A120: P02_E04_C3_ia | B120: INTERIOR-WALL
A121: INT-WALL-TYPE | B121: ADIABATIC
A122: COMPROBAR-REQUISITOS-MINIMOS | B122: NO
A123: CONSTRUCTION | B123: C15_MED_01_Medianeria_de_dos
A124: X | B124: 3.25
A125: Y | B125: -5.55
A126: Z | B126: 0
A127: AZIMUTH | B127: 90
A128: TILT | B128: 90
A129: POLYGON | B129: POL_P02_E04_C03
A130: ..
A131: P02_E04_Suelo_i | B131: INTERIOR-WALL
A132: INT-WALL-TYPE | B132: STANDARD
A133: NEXT-TO | B133: P01_E01_Garaje
A134: COMPROBAR-REQUISITOS-MINIMOS | B134: NO
A135: CONSTRUCTION | B135: C05_Forjado_unidireccional_6
A136: X | B136: 3.25
A137: Y | B137: -3,295
A138: Z | B138: 0
A139: AZIMUTH | B139: 270
A140: TILT | B140: 180
A141: POLYGON | B141: POL_P02_E04_S05
A142: ..
A143: P03_E01_C5_ia | B143: INTERIOR-WALL
A144: INT-WALL-TYPE | B144: ADIABATIC
A145: COMPROBAR-REQUISITOS-MINIMOS | B145: NO
A146: CONSTRUCTION | B146: C14_MED_01_Medianeria_de_dos
A147: X | B147: 3.25
A148: Y | B148: -3,181
A149: Z | B149: 0
A150: AZIMUTH | B150: 90
A151: TILT | B151: 90
A152: POLYGON | B152: POL_P03_E01_C05
A153: ..
A154: P03_E01_C6_i | B154: INTERIOR-WALL
A155: INT-WALL-TYPE | B155: STANDARD
A156: NEXT-TO | B156: P03_E06_Bp
A157: COMPROBAR-REQUISITOS-MINIMOS | B157: NO
A158: CONSTRUCTION | B158: C13_LHD_7cm_BE_Tabique_de_un
A159: X | B159: 1,265
A160: Y | B160: -4.99
A161: Z | B161: 0
A162: AZIMUTH | B162: 90
A163: TILT | B163: 90
A164: POLYGON | B164: POL_P03_E01_C08
A165: ..
A166: P03_E01_C7_i | B166: INTERIOR-WALL
A167: INT-WALL-TYPE | B167: STANDARD
A168: NEXT-TO | B168: P03_E06_Bp
A169: COMPROBAR-REQUISITOS-MINIMOS | B169: NO
A170: CONSTRUCTION | B170: C13_LHD_7cm_BE_Tabique_de_un
A171: X | B171: 1,265
A172: Y | B172: -3,181
A173: Z | B173: 0
A174: AZIMUTH | B174: 180
A175: TILT | B175: 90
A176: POLYGON | B176: POL_P03_E01_C09
A177: ..
A178: P03_E01_Suelo1_i | B178: INTERIOR-WALL
A179: INT-WALL-TYPE | B179: STANDARD
A180: NEXT-TO | B180: P02_E01_Cocina
A181: COMPROBAR-REQUISITOS-MINIMOS | B181: NO
A182: CONSTRUCTION | B182: C08_Forjado_unidireccional
A183: X | B183: 0.101
A184: Y | B184: -5.05
A185: Z | B185: 0
A186: AZIMUTH | B186: 0
A187: TILT | B187: 180
A188: POLYGON | B188: POL_P03_E01_S10
A189: ..
A190: P03_E01_Suelo2_i | B190: INTERIOR-WALL
A191: INT-WALL-TYPE | B191: STANDARD
A192: NEXT-TO | B192: P02_E03_Hall
A193: COMPROBAR-REQUISITOS-MINIMOS | B193: NO
A194: CONSTRUCTION | B194: C08_Forjado_unidireccional
A195: X | B195: -0.164
A196: Y | B196: -1,605
A197: Z | B197: 0
A198: AZIMUTH | B198: 180
A199: TILT | B199: 180
A200: POLYGON | B200: POL_P03_E01_S11
... 250 more rows

Sheet Terreno
A1: CERRAMIENTOS CON EL TERRENO | B1: Valores
A2: P01_E01_C1_b | B2: UNDERGROUND-WALL
A3: Z-GROUND | B3: -3
A4: COMPROBAR-REQUISITOS-MINIMOS | B4: YES
A5: CONSTRUCTION | B5: C18_Muro_de_sotano_con_imper
A6: X | B6: -3.25
A7: Y | B7: 5.85
A8: Z | B8: 0
A9: AZIMUTH | B9: 270
A10: TILT | B10: 90
A11: POLYGON | B11: POL_P01_E01_C01
A12: ..
A13: P01_E01_C2_b | B13: UNDERGROUND-WALL
A14: Z-GROUND | B14: -3
A15: COMPROBAR-REQUISITOS-MINIMOS | B15: YES
A16: CONSTRUCTION | B16: C18_Muro_de_sotano_con_imper
A17: X | B17: 3.25
A18: Y | B18: 5.85
A19: Z | B19: 0
A20: AZIMUTH | B20: 0
A21: TILT | B21: 90
A22: POLYGON | B22: POL_P01_E01_C02
A23: ..
A24: P01_E01_C3_b | B24: UNDERGROUND-WALL
A25: Z-GROUND | B25: -3
A26: COMPROBAR-REQUISITOS-MINIMOS | B26: YES
A27: CONSTRUCTION | B27: C18_Muro_de_sotano_con_imper
A28: X | B28: -3.25
A29: Y | B29: -5.05
A30: Z | B30: 0
A31: AZIMUTH | B31: 180
A32: TILT | B32: 90
A33: POLYGON | B33: POL_P01_E01_C03
A34: ..
A35: P01_E01_C4_b | B35: UNDERGROUND-WALL
A36: Z-GROUND | B36: -3
A37: COMPROBAR-REQUISITOS-MINIMOS | B37: YES
A38: CONSTRUCTION | B38: C18_Muro_de_sotano_con_imper
A39: X | B39: 1.3
A40: Y | B40: -5.05
A41: Z | B41: 0
A42: AZIMUTH | B42: 270
A43: TILT | B43: 90
A44: POLYGON | B44: POL_P01_E01_C04
A45: ..
A46: P01_E01_C5_b | B46: UNDERGROUND-WALL
A47: Z-GROUND | B47: -3
A48: COMPROBAR-REQUISITOS-MINIMOS | B48: YES
A49: CONSTRUCTION | B49: C18_Muro_de_sotano_con_imper
A50: X | B50: 1.3
A51: Y | B51: -5.55
A52: Z | B52: 0
A53: AZIMUTH | B53: 180
A54: TILT | B54: 90
A55: POLYGON | B55: POL_P01_E01_C05
A56: ..
A57: P01_E01_C6_b | B57: UNDERGROUND-WALL
A58: Z-GROUND | B58: -3
A59: COMPROBAR-REQUISITOS-MINIMOS | B59: YES
A60: CONSTRUCTION | B60: C18_Muro_de_sotano_con_imper
A61: X | B61: 3.25
A62: Y | B62: -5.55
A63: Z | B63: 0
A64: AZIMUTH | B64: 90
A65: TILT | B65: 90
A66: POLYGON | B66: POL_P01_E01_C06
A67: ..
A68: P01_E01_Suelo_b | B68: UNDERGROUND-WALL
A69: Z-GROUND | B69: -3
A70: COMPROBAR-REQUISITOS-MINIMOS | B70: YES
A71: CONSTRUCTION | B71: C19_Solera
A72: X | B72: 3.25
A73: Y | B73: 5.85
A74: Z | B74: 0
A75: AZIMUTH | B75: 270
A76: TILT | B76: 180
A77: POLYGON | B77: POL_P01_E01_S07
A78: AREA | B78: 7,182,499
A79: PERIMETRO | B79: 35.8
A80: ..
A81: FIN | B81: FIN

Sheet Cubierta
A1: CUBIERTAS | B1: Valores
A2: P01_E01_Techo1_e | B2: ROOF
A3: ABSORPTANCE | B3: 0.6
A4: COMPROBAR-REQUISITOS-MINIMOS | B4: YES
A5: TYPE_ABSORPTANCE | B5: 1
A6: COLOR_ABSORPTANCE | B6: 0
A7: DEGREE_ABSORPTANCE | B7: 2
A8: CONSTRUCTION | B8: C02_CUB_02_Cubierta_plana_tr
A9: X | B9: 1.3
A10: Y | B10: -3.56
A11: Z | B11: 3,158
A12: AZIMUTH | B12: 0
A13: TILT | B13: 0
A14: POLYGON | B14: POL_P01_E01_T08
A15: ..
A16: P02_E02_Techo1_e | B16: ROOF
A17: ABSORPTANCE | B17: 0.6
A18: COMPROBAR-REQUISITOS-MINIMOS | B18: YES
A19: TYPE_ABSORPTANCE | B19: 1
A20: COLOR_ABSORPTANCE | B20: 0
A21: DEGREE_ABSORPTANCE | B21: 2
A22: CONSTRUCTION | B22: C01_CUB_01_Cubierta_plana_tr
A23: X | B23: 1.55
A24: Y | B24: 5.25
A25: Z | B25: 3,279
A26: AZIMUTH | B26: 90
A27: TILT | B27: 0
A28: POLYGON | B28: POL_P02_E02_T12
A29: ..
A30: P04_E01_Techo_e | B30: ROOF
A31: ABSORPTANCE | B31: 0.6
A32: COMPROBAR-REQUISITOS-MINIMOS | B32: YES
A33: TYPE_ABSORPTANCE | B33: 1
A34: COLOR_ABSORPTANCE | B34: 0
A35: DEGREE_ABSORPTANCE | B35: 2
A36: CONSTRUCTION | B36: C01_CUB_01_Cubierta_plana_tr
A37: X | B37: 3.25
A38: Y | B38: -1.74
A39: Z | B39: 3,279
A40: AZIMUTH | B40: 90
A41: TILT | B41: 0
A42: POLYGON | B42: POL_P04_E01_T06
A43: ..
A44: FIN | B44: FIN

Sheet Ventanas
A1: VENTANAS | B1: Valores
A2: P01_E01_PE001_V | B2: WINDOW
A3: X | B3: 2.65
A4: Y | B4: 1
A5: SETBACK | B5: 0.15
A6: HEIGHT | B6: 1
A7: WIDTH | B7: 1
A8: GAP | B8: PVCvidrio4_12_6BE
A9: COEFF | B9: 1 | C9: 1,000,000 | D9: 1,000,000 | E9: 1
A10: GLASS-TYPE | B10: VER_DB3_4-12-6
A11: FRAME-WIDTH | B11: 0.0669873
A12: FRAME-CONDUCT | B12: 2.2
A13: FRAME-ABS | B13: 0.7
A14: INF-COEF | B14: 9
A15: OVERHANG-A | B15: 0
A16: OVERHANG-B | B16: 0
A17: OVERHANG-W | B17: 0
A18: OVERHANG-D | B18: 0
A19: OVERHANG-ANGLE | B19: 0
A20: LEFT-FIN-A | B20: 0
A21: LEFT-FIN-B | B21: 0
A22: LEFT-FIN-H | B22: 0
A23: LEFT-FIN-D | B23: 0
A24: RIGHT-FIN-A | B24: 0
A25: RIGHT-FIN-B | B25: 0
A26: RIGHT-FIN-H | B26: 0
A27: RIGHT-FIN-D | B27: 0
A28: ..
A29: P01_E01_PE004_V | B29: WINDOW
A30: X | B30: 4.27
A31: Y | B31: 1
A32: SETBACK | B32: 0.15
A33: HEIGHT | B33: 1
A34: WIDTH | B34: 1
A35: GAP | B35: PVCvidrio4_12_6BE
A36: COEFF | B36: 1 | C36: 1,000,000 | D36: 1,000,000 | E36: 1
A37: GLASS-TYPE | B37: VER_DB3_4-12-6
A38: FRAME-WIDTH | B38: 0.0669873
A39: FRAME-CONDUCT | B39: 2.2
A40: FRAME-ABS | B40: 0.7
A41: INF-COEF | B41: 9
A42: OVERHANG-A | B42: 0
A43: OVERHANG-B | B43: 0
A44: OVERHANG-W | B44: 0
A45: OVERHANG-D | B45: 0
A46: OVERHANG-ANGLE | B46: 0
A47: LEFT-FIN-A | B47: 0
A48: LEFT-FIN-B | B48: 0
A49: LEFT-FIN-H | B49: 0
A50: LEFT-FIN-D | B50: 0
A51: RIGHT-FIN-A | B51: 0
A52: RIGHT-FIN-B | B52: 0
A53: RIGHT-FIN-H | B53: 0
A54: RIGHT-FIN-D | B54: 0
A55: ..
A56: FIN | B56: FIN

Sheet Comp_Opacos
A1: COMPONENETE OPACO | B1: Valores
A2: C01_CUB_01_Cubierta_plana_tr | B2: LAYERS
A3: GROUP | B3: CYPE
A4: NAME_CALENER | B4: C01_CUB_01_Cubierta_plana_tr
A5: NAME | B5: C01_CUB_01_Cubierta_plana_tr
A6: TYPE-DEFINITION | B6: 1
A7: MATERIAL | B7: M25_Pavimento_de_gres_porcel | C7: M23_Mortero_de_cemento | D7: M14_Geotextil_de_poliester_D | E7: M27_Poliestireno_extruido_XP | F7: M13_Geotextil_de_poliester_D | G7: M18_Impermeabilizacion_liqui | H7: M09_Formacion_de_pendientes | I7: M08_Forjado_unidireccional_2 | J7: M15_Guarnecido_de_yeso
A8: THICKNESS | B8: 0.01 | C8: 0.04 | D8: 0.0021 | E8: 0.12 | F8: 0.0019 | G8: 0.005 | H8: 0.1 | I8: 0.3 | J8: 0.015
A9: ESPESOR TOTAL | B9: =SUM(8:8) -> 0.594
A10: ..
A11: C02_CUB_02_Cubierta_plana_tr | B11: LAYERS
A12: GROUP | B12: CYPE
A13: NAME_CALENER | B13: C02_CUB_02_Cubierta_plana_tr
A14: NAME | B14: C02_CUB_02_Cubierta_plana_tr
A15: TYPE-DEFINITION | B15: 1
A16: MATERIAL | B16: M25_Pavimento_de_gres_porcel | C16: M23_Mortero_de_cemento | D16: M14_Geotextil_de_poliester_D | E16: M17_Impermeabilizacion_liqui | F16: M09_Formacion_de_pendientes | G16: M08_Forjado_unidireccional_2
A17: THICKNESS | B17: 0.01 | C17: 0.04 | D17: 0.0021 | E17: 0.0055 | F17: 0.1 | G17: 0.3
A18: ESPESOR TOTAL | B18: =SUM(17:17) -> 0.4576
A19: ..
A20: C03_CUB_01_Cubierta_plana_tr | B20: LAYERS
A21: GROUP | B21: CYPE
A22: NAME_CALENER | B22: C03_CUB_01_Cubierta_plana_tr
A23: NAME | B23: C03_CUB_01_Cubierta_plana_tr
A24: TYPE-DEFINITION | B24: 1
A25: MATERIAL | B25: M25_Pavimento_de_gres_porcel | C25: M23_Mortero_de_cemento | D25: M14_Geotextil_de_poliester_D | E25: M27_Poliestireno_extruido_XP | F25: M13_Geotextil_de_poliester_D | G25: M18_Impermeabilizacion_liqui | H25: M09_Formacion_de_pendientes | I25: M08_Forjado_unidireccional_2 | J25: M03_Camara_de_aire_horizonta | K25: M07_Falso_techo_continuo_de
A26: THICKNESS | B26: 0.01 | C26: 0.04 | D26: 0.0021 | E26: 0.12 | F26: 0.0019 | G26: 0.005 | H26: 0.1 | I26: 0.3 | J26: 0.3 | K26: 0.016
A27: ESPESOR TOTAL | B27: =SUM(26:26) -> 0.895
A28: ..
A29: C04_Forjado_unidireccional | B29: LAYERS
A30: GROUP | B30: CYPE
A31: NAME_CALENER | B31: C04_Forjado_unidireccional
A32: NAME | B32: C04_Forjado_unidireccional
A33: TYPE-DEFINITION | B33: 1
A34: MATERIAL | B34: M28_Solado_de_baldosas_ceram | C34: M02_Base_de_mortero_autonive | D34: M19_Lana_de_roca_Panel_Solad | E34: M08_Forjado_unidireccional_2 | F34: M03_Camara_de_aire_horizonta | G34: M07_Falso_techo_continuo_de
A35: THICKNESS | B35: 0.01 | C35: 0.04 | D35: 0.02 | E35: 0.3 | F35: 0.3 | G35: 0.016
A36: ESPESOR TOTAL | B36: =SUM(35:35) -> 0.686
A37: ..
A38: C05_Forjado_unidireccional_6 | B38: LAYERS
A39: GROUP | B39: CYPE
A40: NAME_CALENER | B40: C05_Forjado_unidireccional_6
A41: NAME | B41: C05_Forjado_unidireccional_6
A42: TYPE-DEFINITION | B42: 1
A43: MATERIAL | B43: M28_Solado_de_baldosas_ceram | C43: M02_Base_de_mortero_autonive | D43: XPSExpandidocondioxidodecarbonoCO2[0.034W/[mK]] | E43: M08_Forjado_unidireccional_2
A44: THICKNESS | B44: 0.01 | C44: 0.04 | D44: 0.06 | E44: 0.3
A45: ESPESOR TOTAL | B45: =SUM(44:44) -> 0.41
A46: ..
A47: C06_Forjado_unidireccional_6 | B47: LAYERS
A48: GROUP | B48: CYPE
A49: NAME_CALENER | B49: C06_Forjado_unidireccional_6
A50: NAME | B50: C06_Forjado_unidireccional_6
A51: TYPE-DEFINITION | B51: 1
A52: MATERIAL | B52: M26_Pavimento_laminado | C52: M21_Lamina_de_espuma_de_poli | D52: M02_Base_de_mortero_autonive | E52: XPSExpandidocondioxidodecarbonoCO2[0.034W/[mK]] | F52: M08_Forjado_unidireccional_2
A53: THICKNESS | B53: 0.007 | C53: 0.003 | D53: 0.04 | E53: 0.06 | F53: 0.3
A54: ESPESOR TOTAL | B54: =SUM(53:53) -> 0.41
A55: ..
A56: C07_Forjado_unidireccional_8 | B56: LAYERS
A57: GROUP | B57: CYPE
A58: NAME_CALENER | B58: C07_Forjado_unidireccional_8
A59: NAME | B59: C07_Forjado_unidireccional_8
A60: TYPE-DEFINITION | B60: 1
A61: MATERIAL | B61: M26_Pavimento_laminado | C61: M21_Lamina_de_espuma_de_poli | D61: M02_Base_de_mortero_autonive | E61: M19_Lana_de_roca_Panel_Solad | F61: M08_Forjado_unidireccional_2 | G61: PURProyeccionconCO2celdacerrada[0.035W/[mK]] | H61: Placadeyesolaminado[PYL]750d900
A62: THICKNESS | B62: 0.007 | C62: 0.003 | D62: 0.04 | E62: 0.02 | F62: 0.3 | G62: 0.1 | H62: 0.015
A63: ESPESOR TOTAL | B63: =SUM(62:62) -> 0.485
A64: ..
A65: C08_Forjado_unidireccional | B65: LAYERS
A66: GROUP | B66: CYPE
A67: NAME_CALENER | B67: C08_Forjado_unidireccional
A68: NAME | B68: C08_Forjado_unidireccional
A69: TYPE-DEFINITION | B69: 1
A70: MATERIAL | B70: M26_Pavimento_laminado | C70: M21_Lamina_de_espuma_de_poli | D70: M02_Base_de_mortero_autonive | E70: M19_Lana_de_roca_Panel_Solad | F70: M08_Forjado_unidireccional_2 | G70: M03_Camara_de_aire_horizonta | H70: M07_Falso_techo_continuo_de
A71: THICKNESS | B71: 0.007 | C71: 0.003 | D71: 0.04 | E71: 0.02 | F71: 0.3 | G71: 0.3 | H71: 0.016
A72: ESPESOR TOTAL | B72: =SUM(71:71) -> 0.686
A73: ..
A74: C09_Forjado_unidireccional | B74: LAYERS
A75: GROUP | B75: CYPE
A76: NAME_CALENER | B76: C09_Forjado_unidireccional
A77: NAME | B77: C09_Forjado_unidireccional
A78: TYPE-DEFINITION | B78: 1
A79: MATERIAL | B79: M28_Solado_de_baldosas_ceram | C79: M02_Base_de_mortero_autonive | D79: M19_Lana_de_roca_Panel_Solad | E79: M08_Forjado_unidireccional_2 | F79: M15_Guarnecido_de_yeso
A80: THICKNESS | B80: 0.01 | C80: 0.04 | D80: 0.02 | E80: 0.3 | F80: 0.015
A81: ESPESOR TOTAL | B81: =SUM(80:80) -> 0.385
A82: ..
A83: C10_Forjado_unidireccional | B83: LAYERS
A84: GROUP | B84: CYPE
A85: NAME_CALENER | B85: C10_Forjado_unidireccional
A86: NAME | B86: C10_Forjado_unidireccional
A87: TYPE-DEFINITION | B87: 1
A88: MATERIAL | B88: M26_Pavimento_laminado | C88: M21_Lamina_de_espuma_de_poli | D88: M02_Base_de_mortero_autonive | E88: M19_Lana_de_roca_Panel_Solad | F88: M08_Forjado_unidireccional_2 | G88: M15_Guarnecido_de_yeso
A89: THICKNESS | B89: 0.007 | C89: 0.003 | D89: 0.04 | E89: 0.02 | F89: 0.3 | G89: 0.015
A90: ESPESOR TOTAL | B90: =SUM(89:89) -> 0.385
A91: ..
A92: C11_LHD_7cm_BE_Tabique_de_un | B92: LAYERS
A93: GROUP | B93: CYPE
A94: NAME_CALENER | B94: C11_LHD_7cm_BE_Tabique_de_un
A95: NAME | B95: C11_LHD_7cm_BE_Tabique_de_un
A96: TYPE-DEFINITION | B96: 1
A97: MATERIAL | B97: M01_Alicatado_con_baldosas_c | C97: M15_Guarnecido_de_yeso | D97: M10_Fabrica_de_ladrillo_cera | E97: M15_Guarnecido_de_yeso
A98: THICKNESS | B98: 0.005 | C98: 0.015 | D98: 0.07 | E98: 0.015
A99: ESPESOR TOTAL | B99: =SUM(98:98) -> 0.105
A100: ..
A101: C12_LHD_7cm_BE_Tabique_de_un | B101: LAYERS
A102: GROUP | B102: CYPE
A103: NAME_CALENER | B103: C12_LHD_7cm_BE_Tabique_de_un
A104: NAME | B104: C12_LHD_7cm_BE_Tabique_de_un
A105: TYPE-DEFINITION | B105: 1
A106: MATERIAL | B106: M15_Guarnecido_de_yeso | C106: M10_Fabrica_de_ladrillo_cera | D106: M15_Guarnecido_de_yeso
A107: THICKNESS | B107: 0.015 | C107: 0.07 | D107: 0.015
A108: ESPESOR TOTAL | B108: =SUM(107:107) -> 0.1
A109: ..
A110: C13_LHD_7cm_BE_Tabique_de_un | B110: LAYERS
A111: GROUP | B111: CYPE
A112: NAME_CALENER | B112: C13_LHD_7cm_BE_Tabique_de_un
A113: NAME | B113: C13_LHD_7cm_BE_Tabique_de_un
A114: TYPE-DEFINITION | B114: 1
A115: MATERIAL | B115: M15_Guarnecido_de_yeso | C115: M10_Fabrica_de_ladrillo_cera | D115: M15_Guarnecido_de_yeso | E115: M01_Alicatado_con_baldosas_c
A116: THICKNESS | B116: 0.015 | C116: 0.07 | D116: 0.015 | E116: 0.005
A117: ESPESOR TOTAL | B117: =SUM(116:116) -> 0.105
A118: ..
A119: C14_MED_01_Medianeria_de_dos | B119: LAYERS
A120: GROUP | B120: CYPE
A121: NAME_CALENER | B121: C14_MED_01_Medianeria_de_dos
A122: NAME | B122: C14_MED_01_Medianeria_de_dos
A123: TYPE-DEFINITION | B123: 1
A124: MATERIAL | B124: M06_Enfoscado_de_cemento_a_b | C124: M10_Fabrica_de_ladrillo_cera | D124: M20_Lana_mineral_Ursa_Glassw | E124: M10_Fabrica_de_ladrillo_cera | F124: M15_Guarnecido_de_yeso
A125: THICKNESS | B125: 0.01 | C125: 0.07 | D125: 0.04 | E125: 0.07 | F125: 0.015
A126: ESPESOR TOTAL | B126: =SUM(125:125) -> 0.205
A127: ..
A128: C15_MED_01_Medianeria_de_dos | B128: LAYERS
A129: GROUP | B129: CYPE
A130: NAME_CALENER | B130: C15_MED_01_Medianeria_de_dos
A131: NAME | B131: C15_MED_01_Medianeria_de_dos
A132: TYPE-DEFINITION | B132: 1
A133: MATERIAL | B133: M06_Enfoscado_de_cemento_a_b | C133: M10_Fabrica_de_ladrillo_cera | D133: M20_Lana_mineral_Ursa_Glassw | E133: M10_Fabrica_de_ladrillo_cera | F133: M15_Guarnecido_de_yeso | G133: M01_Alicatado_con_baldosas_c
A134: THICKNESS | B134: 0.01 | C134: 0.07 | D134: 0.04 | E134: 0.07 | F134: 0.015 | G134: 0.005
A135: ESPESOR TOTAL | B135: =SUM(134:134) -> 0.21
A136: ..
A137: C16_MF01_Fachada_doble_hoja | B137: LAYERS
A138: GROUP | B138: CYPE
A139: NAME_CALENER | B139: C16_MF01_Fachada_doble_hoja
A140: NAME | B140: C16_MF01_Fachada_doble_hoja
A141: TYPE-DEFINITION | B141: 1
A142: MATERIAL | B142: 1/2pieLPmetricoocatalan60mmG80mm | C142: MorterodecementoocalparaalbaÃ±ileriaypararevoco/enlucido1000d1250 | D142: URSAMUR0.036 | E142: M04_Camara_de_aire_vertical | F142: M11_Fabrica_de_ladrillo_cera | G142: M15_Guarnecido_de_yeso | H142: M01_Alicatado_con_baldosas_c
A143: THICKNESS | B143: 0.115 | C143: 0.01 | D143: 0.08 | E143: 0.05 | F143: 0.04 | G143: 0.015 | H143: 0.005
A144: ESPESOR TOTAL | B144: =SUM(143:143) -> 0.315
A145: ..
A146: C17_MF01_Fachada_doble_hoja | B146: LAYERS
A147: GROUP | B147: CYPE
A148: NAME_CALENER | B148: C17_MF01_Fachada_doble_hoja
A149: NAME | B149: C17_MF01_Fachada_doble_hoja
A150: TYPE-DEFINITION | B150: 1
A151: MATERIAL | B151: 1/2pieLPmetricoocatalan60mmG80mm | C151: MorterodecementoocalparaalbaÃ±ileriaypararevoco/enlucido1000d1250 | D151: URSAMUR0.036 | E151: M04_Camara_de_aire_vertical | F151: M11_Fabrica_de_ladrillo_cera | G151: M15_Guarnecido_de_yeso
A152: THICKNESS | B152: 0.115 | C152: 0.01 | D152: 0.08 | E152: 0.05 | F152: 0.04 | G152: 0.015
A153: ESPESOR TOTAL | B153: =SUM(152:152) -> 0.31
A154: ..
A155: C18_Muro_de_sotano_con_imper | B155: LAYERS
A156: GROUP | B156: CYPE
A157: NAME_CALENER | B157: C18_Muro_de_sotano_con_imper
A158: NAME | B158: C18_Muro_de_sotano_con_imper
A159: TYPE-DEFINITION | B159: 1
A160: MATERIAL | B160: M22_Lamina_drenante_nodular | C160: M05_Emulsion_asfaltica_emuls | D160: M24_Muro_de_sotano_de_hormig
A161: THICKNESS | B161: 0.001 | C161: 0.001 | D161: 0.25
A162: ESPESOR TOTAL | B162: =SUM(161:161) -> 0.252
A163: ..
A164: C19_Solera | B164: LAYERS
A165: GROUP | B165: CYPE
A166: NAME_CALENER | B166: C19_Solera
A167: NAME | B167: C19_Solera
A168: TYPE-DEFINITION | B168: 1
A169: MATERIAL | B169: M29_Solera_de_hormigon_en_ma
A170: THICKNESS | B170: -0.15
A171: ESPESOR TOTAL | B171: =SUM(170:170) -> -0.15
A172: ..
A173: FIN | B173: FIN

Sheet Listados (hidden)
B1: lista | C1: =Resultados!C20 -> POL_P04_E01_T06 | D1: =C1 -> POL_P04_E01_T06
B2: POL_P01 | C2: 0 | D2: 0
B3: POL_P01_E01 | C3: 2.6975 | D3: 0
B4: POL_P01_E01_C01 | C4: 2.488 | D4: 0.205
B5: POL_P01_E01_C02 | C5: 2.488 | D5: 2.933
B6: POL_P01_E01_C03 | C6: 0.185 | D6: 2.933
B7: POL_P01_E01_C04 | C7: 0.185 | D7: 0.205
B8: POL_P01_E01_C05
B9: POL_P01_E01_C06
B10: POL_P01_E01_S07
B11: POL_P01_E01_T08
B12: POL_P02
B13: POL_P02_E01
B14: POL_P02_E01_C01
B15: POL_P02_E01_C02
B16: POL_P02_E01_C03
B17: POL_P02_E01_C04
B18: POL_P02_E01_S06
B19: POL_P02_E02
B20: POL_P02_E02_C01
B21: POL_P02_E02_C02
B22: POL_P02_E02_C03
B23: POL_P02_E02_C04
B24: POL_P02_E02_C05
B25: POL_P02_E02_C06
B26: POL_P02_E02_S07
B27: POL_P02_E02_T12
B28: POL_P02_E03
B29: POL_P02_E03_C01
B30: POL_P02_E03_C02
B31: POL_P02_E03_C06
B32: POL_P02_E03_S07
B33: POL_P02_E04
B34: POL_P02_E04_C01
B35: POL_P02_E04_C02
B36: POL_P02_E04_C03
B37: POL_P02_E04_S05
B38: POL_P03
B39: POL_P03_E01
B40: POL_P03_E01_C01
B41: POL_P03_E01_C02
B42: POL_P03_E01_C03
B43: POL_P03_E01_C04
B44: POL_P03_E01_C05
B45: POL_P03_E01_C08
B46: POL_P03_E01_C09
B47: POL_P03_E01_S10
B48: POL_P03_E01_S11
B49: POL_P03_E01_S12
B50: POL_P03_E02
B51: POL_P03_E02_C01
B52: POL_P03_E02_C03
B53: POL_P03_E02_C04
B54: POL_P03_E02_S05
B55: POL_P03_E02_S06
B56: POL_P03_E03
B57: POL_P03_E03_C01
B58: POL_P03_E03_C02
B59: POL_P03_E03_C03
B60: POL_P03_E03_C04
B61: POL_P03_E03_C05
B62: POL_P03_E03_C06
B63: POL_P03_E03_C07
B64: POL_P03_E03_S08
B65: POL_P03_E04
B66: POL_P03_E04_C01
B67: POL_P03_E04_C05
B68: POL_P03_E04_S06
B69: POL_P03_E04_S07
B70: POL_P03_E04_S08
B71: POL_P03_E05
B72: POL_P03_E05_C01
B73: POL_P03_E05_C02
B74: POL_P03_E05_C03
B75: POL_P03_E05_C04
B76: POL_P03_E05_C06
B77: POL_P03_E05_S07
B78: POL_P03_E06
B79: POL_P03_E06_C01
B80: POL_P03_E06_C02
B81: POL_P03_E06_C03
B82: POL_P03_E06_S06
B83: POL_P03_E06_S07
B84: POL_P04
B85: POL_P04_E01
B86: POL_P04_E01_C01
B87: POL_P04_E01_C02
B88: POL_P04_E01_C03
B89: POL_P04_E01_C04
B90: POL_P04_E01_S05
B91: POL_P04_E01_T06
